Cogmind - Beta 15 @@@ ROGUE MODE // 2025.05.22 @ 22:40:07 Player: Darcyisverycute Result: Destroyed by 0V-Z8P(R) with Subdweller Laser Performance ------------- Evolutions (0) 0 Regions Visited (3) 600 Robots Destroyed (28) 140 Value Destroyed (676) 676 Prototype IDs (0) 0 Alien Tech Used (0) 0 Bonus (0) 0 TOTAL SCORE: 1416 Bonus ------- None Cogmind --------- Core Integrity 0/250 Matter 179/300 Energy 250/250 System Corruption 0% Temperature Cool (6) Movement Treading (260) Ox1 Location -10/Subcaves Parts ------- > --- POWER (1) -------- Ion Engine > --- PROPULSION (2) --- Spiked Treads > --- UTILITY (2) ------ Large Storage Unit Light Armor Plating > --- WEAPON (2) ------- Heavy Assault Rifle Battle Rifle > --- INVENTORY (15) --- Scrap Suit Improved Heat Sink Medium Storage Unit Medium Battery (150) High-capacity Matter Pod (200) Improved Terrain Scanner Seismic Detector Shock Rifle Subdweller Beam Cannon Heavy Assault Rifle Heavy Assault Rifle Grenade Launcher Subdweller Shrapnel Launcher Mining Laser Peak State ------------ > --- POWER ------------ Ion Engine > --- PROPULSION ------- Spiked Treads Compact Wheel > --- UTILITY ---------- Large Storage Unit Light Armor Plating > --- WEAPON ----------- Heavy Assault Rifle Battle Rifle > --- INVENTORY -------- Scrap Suit Improved Heat Sink Medium Storage Unit Medium Battery High-capacity Matter Pod Improved Terrain Scanner Seismic Detector Shock Rifle Subdweller Beam Cannon Heavy Assault Rifle Heavy Assault Rifle Grenade Launcher Mining Laser Mining Laser [Rating: 13] Favorites ----------- Power Light Ion Engine Engine Light Ion Engine Propulsion Light Treads Treads Light Treads Wheel Compact Wheel Utility Seismic Detector Device Seismic Detector Storage Large Storage Unit Protection Light Armor Plating Weapon Heavy Assault Rifle Energy Gun Shock Rifle Ballistic Gun Heavy Assault Rifle Special Weapon Mining Laser Build | -11 -10 -10 -10 ------- Run | Yrd Mat Min Sub Slots Evolved . | . . . . Power . | . . . . Propulsion . | . . . . Utility . | . . . . Weapon . | . . . . Parts Attached 20 | 7 3 4 6 Power 2 | 1 . . 1 Engine 2 | 1 . . 1 Core . | . . . . Reactor . | . . . . Propulsion 4 | 2 . 1 1 Treads 3 | 2 . . 1 Leg . | . . . . Wheel 1 | . . 1 . Hover . | . . . . Flight . | . . . . Utility 4 | 2 1 . 1 Device 1 | 1 . . . Storage 2 | 1 1 . . Processor . | . . . . Hackware . | . . . . Protection 1 | . . . 1 Artifact . | . . . . Weapon 10 | 2 2 3 3 Energy Gun 1 | . . 1 . Energy Cannon . | . . . . Ballistic Gun 7 | 2 2 . 3 Ballistic Cannon . | . . . . Launcher . | . . . . Special Weapon 2 | . . 2 . Impact Weapon . | . . . . Slashing Weapon . | . . . . Piercing Weapon . | . . . . Special Melee Weapon . | . . . . Unidentified Prototypes . | . . . . Parts Lost 3 | . . 1 2 Power . | . . . . Propulsion 3 | . . 1 2 Utility . | . . . . Weapon . | . . . . Highest Loss Streak 1 | . . 1 1 To Critical Strikes . | . . . . Average Backups 10 | 1 8 13 14 Power . | . 1 1 . Propulsion . | . 1 . . Utility 4 | . 2 5 7 Weapon 5 | . 3 6 6 Tool/Special . | . . . . Unused Backups 14 | . 2 2 10 Power . | . . . . Propulsion . | . . . . Utility 6 | . . . 6 Weapon 8 | . 2 2 4 Tool/Special . | . . . . Average Slot Usage (%) 96 | . 100 100 91 Engine 14 | . 14 14 14 Treads 17 | . 28 18 7 Wheel 7 | . . 9 13 Device 11 | . 14 14 8 Storage 14 | . 14 14 14 Protection 2 | . . . 5 Energy Gun 3 | . . 5 5 Ballistic Gun 22 | . 28 21 18 Special Weapon 1 | . . . 3 Peak Build Rating 13 | 7 10 12 13 Average Rating 9 | 5 9 10 11 On Entrance 7 | . 7 10 11 Naked Turns . | . . . . Heaviest Build 33 | 11 30 30 33 Greatest Support 40 | 40 40 40 16 Greatest Overweight (x) 2 | . . 1 2 Average Overweight (x) . | . . . 1 Largest Inventory Capacity 15 | 8 15 15 15 Average Capacity 12 | 7 9 15 15 Most Carried 15 | 5 13 15 15 Average Carried 10 | 1 8 13 14 Final Capacity 15 | 8 15 15 15 Final Carried 15 | 5 13 15 15 Class Distribution -------------------- 100% | Mutant Dominant Class ---------------- Mutant | -10/Materials Mutant | -10/Mines Mutant | -10/Subcaves Resources | -11 -10 -10 -10 ----------- Run | Yrd Mat Min Sub Matter Collected 981 | 281 226 205 269 Remotely . | . . . . Salvage Created 1047 | 84 584 146 233 Parts 69 | 8 32 14 15 Haulers Intercepted 1 | . 1 . . Recyclers Shooed 2 | 1 . 1 . Parts Field Recycled . | . . . . Retrieved Matter . | . . . . Parts Self-Destructed . | . . . . Prevented . | . . . . Kills | -11 -10 -10 -10 ------- Run | Yrd Mat Min Sub Combat Hostiles Destroyed 20 | . 11 4 5 Guns 19 | . 11 3 5 AOE 1 | . . 1 . Classes Destroyed 9 | 2 5 . 2 Worker 1 | . 1 . . Tunneler 2 | 2 . . . Hauler 1 | . 1 . . Recycler 3 | 1 1 1 . Watcher 1 | . 1 . . Swarmer 6 | . 3 3 . Grunt 9 | . 8 1 . Artisan 1 | . . . 1 Subdweller 5 | . . . 5 Best Kill Streak 4 | 2 3 4 2 Combat Bots Only 3 | . 3 3 2 Max Kills in Single Turn 2 | 1 2 1 1 Gunslinging . | . . . . Exploded 1 | . . 1 . Melee . | . . . . Uniques/NPCs Destroyed . | . . . . Combat | -11 -10 -10 -10 -------- Run | Yrd Mat Min Sub Hostile Shots Fired 105 | . 53 11 41 Missed 32 | . 16 2 14 Hits 73 | . 37 9 27 Projectile 73 | . 37 9 27 Critical Strikes 1 | . . . 1 Damage Taken 1091 | . 439 70 582 Core 250 | . 69 7 174 Absorbed by Shields . | . . . . Core Remaining (%) 100 | 100 . . . Volleys Fired 121 | 13 46 14 48 Largest 2 | 2 2 2 2 Hottest 100 | 40 46 100 100 Shots Fired 222 | 26 92 24 80 Gun 205 | 26 92 20 67 Cannon . | . . . . Launcher . | . . . . Special 17 | . . 4 13 Kinetic 195 | 26 92 19 58 Thermal 17 | . . 4 13 Explosive . | . . . . Electromagnetic 10 | . . 1 9 Robot Hit Streak 13 | 6 10 5 13 Robot Miss Streak 6 | 1 3 6 2 Penetration Max . | . . . . Secondary Targets 1 | . . . 1 Max Gunslinging Chain 1 | . . . 1 Shots Hit Robots 145 | 19 60 10 56 Core Hits 55 | 7 28 7 13 Critical Kills 1 | . 1 . . Critical Parts Destroyed 1 | . . . 1 Critical Strikes 4 | . 1 . 3 Destroy 3 | . 1 . 2 Corrupt 1 | . . . 1 Melee Attacks . | . . . . Impact . | . . . . Slashing . | . . . . Piercing . | . . . . Sneak Attacks . | . . . . Combat Hostiles . | . . . . Follow-up Attacks . | . . . . Damage Inflicted 2048 | 155 797 221 875 Guns 1873 | 155 704 172 842 Cannons . | . . . . Explosions 175 | . 93 49 33 Melee . | . . . . Ramming . | . . . . Kinetic 1745 | 155 704 154 732 Thermal 82 | . . 49 33 Explosive 93 | . 93 . . Electromagnetic 128 | . . 18 110 Impact . | . . . . Slashing . | . . . . Piercing . | . . . . Highest Corruption . | . . . . Average Corruption . | . . . . Corruption Purged . | . . . . Corruption Blocked . | . . . . Overload Shots . | . . . . Overflow Damage . | . . . . Projectiles . | . . . . Explosions . | . . . . Melee . | . . . . Knockbacks . | . . . . Impact . | . . . . Kinetic . | . . . . Secondary . | . . . . Self-Inflicted Damage 36 | . . . 36 Shots 1 | . . . 1 Rammed . | . . . . Targets Rammed . | . . . . Kicked . | . . . . Crushed . | . . . . Highest Temperature 40 | . 12 40 . Average Temperature 11 | . 5 20 . Received Heat Transfer 324 | . 210 6 108 Siege Activations . | . . . . Martial Activations . | . . . . Shielding Activations . | . . . . Robots Disrupted . | . . . . Combat Hostiles . | . . . . Robots Corrupted . | . . . . Combat Hostiles . | . . . . Parts Fried . | . . . . Impact Corruptions . | . . . . Robots Melted . | . . . . Combat Hostiles . | . . . . Parts Melted . | . . . . Heat Transferred 100 | . . 50 50 Parts Sabotaged . | . . . . Parts Stolen . | . . . . Parts Stripped . | . . . . Power Chain Reactions 2 | . . 1 1 Alert | -11 -10 -10 -10 ------- Run | Yrd Mat Min Sub Maximum Alert Level . | . . . . Low Security (%) 100 | 100 100 100 . Level 1 . | . . . . Level 2 . | . . . . Level 3 . | . . . . Level 4 . | . . . . Level 5 . | . . . . High Security . | . . . . Max Security . | . . . . Peak Influence 192 | 10 192 60 . Initial 37 | . . 37 . Average 52 | . 79 23 . Influence Increases 552 | 15 414 123 . Destroy 0b10 Robot/C 300 | . 220 80 . Destroy 0b10 Robot/NC 40 | 15 20 5 . Destroy Leader 74 | . 54 20 . Successful Hack 12 | . 12 . . Select Force Hacks 30 | . 30 . . Disable Machine 30 | . 30 . . Destroy Structure 6 | . 3 3 . Lose Combat Pursuer 60 | . 45 15 . Influence Decreases 552 | 15 318 219 . Entered New Map 59 | . . 59 . Time Decay 483 | 15 318 150 . Lost Part 10 | . . 10 . Squads Dispatched 4 | . 3 1 . Investigation 4 | . 3 1 . Extermination . | . . . . Reinforcement . | . . . . Assault . | . . . . Garrison . | . . . . Intercept . | . . . . Searches Triggered . | . . . . Construction Impeded . | . . . . Haulers Reinforced . | . . . . Active Scanning Responses . | . . . . Cargo Convoy Interrupts . | . . . . Stealth | -11 -10 -10 -10 --------- Run | Yrd Mat Min Sub Distress Signals 1 | . 1 . . Communications Jammed . | . . . . Distress Signals . | . . . . Times Spotted 32 | . 21 4 7 Peak Tracking Total 3 | . 3 2 2 Tactical Retreats 4 | . 2 1 1 Traps | -11 -10 -10 -10 ------- Run | Yrd Mat Min Sub Traps Triggered 1 | . 1 . . Indirectly . | . . . . Trap Hack Attempts . | . . . . Triggered . | . . . . Disarmed . | . . . . Reprogrammed . | . . . . Reused . | . . . . Traps Extracted . | . . . . Installed . | . . . . Triggered . | . . . . Machines | -11 -10 -10 -10 ---------- Run | Yrd Mat Min Sub Machines Disabled 2 | . 2 . . Max in Single Turn 2 | . 2 . . Machines Repaired . | . . . . Machines Dismantled . | . . . . Machines Sabotaged . | . . . . Overloaded Fab Kills . | . . . . Hacking | -11 -10 -10 -10 --------- Run | Yrd Mat Min Sub Machines Accessed 3 | . 2 1 . Terminals 1 | . 1 . . Fabricators . | . . . . Repair Stations . | . . . . Recycling Units 1 | . 1 . . Scanalyzers . | . . . . Garrison Access . | . . . . Total Hacks 7 | . 6 1 . Successful 4 | . 3 1 . Failed 3 | . 3 . . Catastrophic . | . . . . Database Lockouts . | . . . . Manual 6 | . 6 . . Terminals 3 | . 3 . . Fabricators . | . . . . Repair Stations . | . . . . Recycling Units 3 | . 3 . . Scanalyzers . | . . . . Garrison Access . | . . . . Terminal Hacks 3 | . 2 1 . Robot Analysis 2 | . 2 . . Open Door 1 | . . 1 . Fabricator Hacks . | . . . . Repair Station Hacks . | . . . . Recycling Unit Hacks . | . . . . Scanalyzer . | . . . . Garrison Access Hacks . | . . . . Unauthorized Hacks 1 | . 1 . . Terminals . | . . . . Fabricators . | . . . . Repair Stations . | . . . . Recycling Units 1 | . 1 . . Tunnel 1 | . 1 . . Scanalyzers . | . . . . Garrison Access . | . . . . Data Cores Recovered . | . . . . Used . | . . . . Hacking Detections 2 | . 2 . . Full Trace Events 1 | . 1 . . Feedback Events . | . . . . Feedback Blocked . | . . . . Robot Schematics Acquired . | . . . . Robots Built . | . . . . Authchips . | . . . . Time . | . . . . Total Robot Build Rating . | . . . . Part Schematics Acquired . | . . . . Parts Built . | . . . . Authchips . | . . . . Time . | . . . . Total Part Build Rating . | . . . . Parts Repaired . | . . . . Time . | . . . . Parts Recycled . | . . . . Recycled Matter . | . . . . Retrieved Matter . | . . . . Retrieved Components . | . . . . Parts Scanalyzed . | . . . . Part Schematics Acquired . | . . . . Parts Damaged . | . . . . Bothacking | -11 -10 -10 -10 ------------ Run | Yrd Mat Min Sub Used RIF Installer . | . . . . Robots Hacked . | . . . . Non-combat . | . . . . Combat . | . . . . Robot Hacks Applied . | . . . . Relay Couplers Released . | . . . . Fabnet Peak Effective % . | . . . . Robots Rewired . | . . . . Allies Hacked . | . . . . Hacks Repelled . | . . . . Allies | -11 -10 -10 -10 -------- Run | Yrd Mat Min Sub Total Allies . | . . . . Largest Group . | . . . . Highest-Rated Group . | . . . . Highest-Rated Ally . | . . . . Total Orders . | . . . . Ally Attacks . | . . . . Total Damage . | . . . . Kills . | . . . . Allies Corrupted . | . . . . Allies Melted . | . . . . Intel | -11 -10 -10 -10 ------- Run | Yrd Mat Min Sub Active Infowar (turns) 1904 | 129 867 367 541 Seismic 1904 | 129 867 367 541 Robot Analysis Total 2 | . 2 . . Derelict Logs Recovered 3 | . . 2 1 Drone Launches . | . . . . Drone Recoveries . | . . . . Exploration | -11 -10 -10 -10 ------------- Run | Yrd Mat Min Sub Turns Passed 2368 | 248 867 367 886 Spaces Moved 1284 | 126 402 242 514 Core 3 | 3 . . . Treads 584 | 123 402 59 . Legs . | . . . . Wheels 697 | . . 183 514 Hover . | . . . . Flight . | . . . . Fastest Speed 50 | 50 160 115 115 Average Speed 135 | 157 160 125 116 Slowest Speed 160 | 160 160 160 130 Overloaded Moves . | . . . . Propulsion Burnouts . | . . . . Robots Hopped . | . . . . Potential Cave-ins . | . . . . Cave-ins Triggered . | . . . . Exploration Rate (%) 43 | 8 72 66 28 Regions Visited 3 Branch Regions 2 Pre-discovered Areas 1 | . 1 . . Known Exits Taken . | . . . . Unknown Exits Taken 3 | 1 1 1 . Scrap Searched 5 | . . 2 3 Spaces Dug 2 | . . . 2 Terrain Destroyed 10 | . 2 3 5 Melee . | . . . . Projectile 3 | . . . 3 AOE 7 | . 2 3 2 Terrain Rammed . | . . . . Walls Destroyed . | . . . . Machines Disabled . | . . . . Actions | -11 -10 -10 -10 --------- Run | Yrd Mat Min Sub Total 1661 | 152 543 271 695 Wait 199 | 2 78 6 113 Move 1281 | 125 401 241 514 Hop . | . . . . Pick Up 22 | 5 10 4 3 Fast Attach 12 | 7 2 . 3 Attach 1 | . . 1 . Detach . | . . . . Swap 13 | . 1 3 9 Drop 12 | . 5 2 5 Fire 121 | 13 46 14 48 Melee . | . . . . Ram . | . . . . Kick . | . . . . Crush . | . . . . Escape Stasis . | . . . . Rewire . | . . . . Trap . | . . . . Miscellaneous . | . . . . Route ------- -11/Scrapyard -10/Materials (discovered 4 exits: [*Mat x2] / *Min x2) -10/Mines (discovered 3 exits: [*Mat x2] / [*Sub]) -10/Subcaves History --------- Turn | Location | Event 4 | -11/Scrapyard | Discovered new exit (range 16) 249 | -11/Scrapyard | Entered Materials 307 | -10/Materials | Build established: Mutant 499 | -10/Materials | Discovered new exit (range 11) 792 | -10/Materials | Discovered new exit (range 15) 881 | -10/Materials | Discovered new exit (range 16) 954 | -10/Materials | Discovered new exit (range 8) 1116 | -10/Materials | Entered Mines 1227 | -10/Mines | Learned 4 Materials zone layouts 1250 | -10/Mines | Discovered new exit (range 7) 1327 | -10/Mines | Met a Derelict shopkeep closing up shop 1350 | -10/Mines | Discovered new exit (range 6) 1436 | -10/Mines | Found a Scrap Suit stashed away for nefarious purposes 1439 | -10/Mines | Found Scrap Suit 1482 | -10/Mines | Discovered new exit (range 3) 1483 | -10/Mines | Entered Subcaves 1484 | -10/Subcaves | Approached by a straggling Scientist 1672 | -10/Subcaves | Ambushed by angry Subdweller bent on revenge 1745 | -10/Subcaves | A swath of the cavern ceiling suddenly collapsed 2093 | -10/Subcaves | Learned Materials garrison access intel 2307 | -10/Subcaves | Ambushed by Subdwellers from Twisted Machinery 2325 | -10/Subcaves | Core integrity fell below 50% 2352 | -10/Subcaves | Core integrity fell below 20% 2369 | -10/Subcaves | Destroyed by 0V-Z8P(R) with Subdweller Laser Last Messages --------------- 4B-Y9K(c): "I think it's somewhere south of here" 02302_ 4B-Y9K(c) triggered Piercing Trap. 02302_ Spikes shoot up from the floor. 02302_ 4B-Y9K(c) suffers critical hit (Impale). 02307_ O1-7JE(R) emerges from the Twisted Machinery. 02314_ EP-7EK(R) destroyed. 02322_ Com. Wheel destroyed. 02326_ 0V-Z8P(R): "SUBMAD!" 02331_ O1-7JE(R) destroyed. 02338_ 0V-Z8P(R) affixes Scrap Shield Fragment to Scrap Shield. 4B-Y9K(c): "I think it's somewhere south of here" 02355_ 4B-Y9K(c) destroyed. 02361_ Subatomizers dissect the Sub. Power Source. 02366_ Destroyed Scrap Shield. Map ----- +----------------------------------------------------+ | ?????????????????????????#^#?????# #" "## # | | ????????????????????????## #?????# #""%"# # | | ????????????????????????# ####### ##!"[# # | | ????????????????????????#^ ##= #%"" # | | ????????????????????????# #& # ##### | | ????????????????????????## ## !# | | ?????????????????????????### ### #### # | | ????????????????????????#### # ###??### | | ???????????????????????## ##????? | | ???????????????????????# # #??? | | ???????????????????????#^ | | ???????????????????????## ^ ### #### # | | ???????????????????????## #?## #????### | | ????????????????????#### ##?# ##??????? | | ????????????????????# ^ ^ #####???????? | | ????????????????????# #??????????? | | ????????????????????##=%### #??????????? | | ????????????????????# | #?## #?????????? | | ????????????????????# #??# ##?????????? | | ????????????????????# #??#####??????????? | | ????????????????????## ##????????????????? | | ????????????????????# #? #?????????????? | | ??????????????????#### # #?????????????? | | ?????????????????## ###???????????? | | ???????????????### % #?????????? | | ???????????????# @* " #?????????? | | ??????????????# ### ##?????????? | | ??????????????#### * "#??###??????????? | | ?????????????????## ![ =#???????????????? | | ??????????????????### %R!%/#??????????????? | | ????????????????????#####]" "?????????????? | | ?????????????????????????"* "????????????? | | ????????????????????????? " " ???????????? | | ????????????????????????? ### ??????????? | | ?????????????????????????? ??? ??????????? | | ??????????????????????????????????????????? | | ??????????????????????????????????????????? | | ??????????????????????????????????????????? | | ??????????????????????????????????????????? | | ??????????????????????????????????????????? | | ??????????????????????????????????????????? | | ??????????????????????????????????????????? | | ??????????????????????????????????????????? | | ??????????????????????????????????????????? | | ??????????????????????????????????????????? | | ??????????????????????????????????????????? | | ??????????????????????????????????????????? | | ??????????????????????????????????????????? | | ??????????????????????????????????????????? | | ??????????????????????????????????????????? | +----------------------------------------------------+ Best States ------------- Heat Dissipation 25 Energy Generation 10 Energy Capacity 250 Matter Stores 300 Matter Capacity 300 Sight Range 16 Terrain Scan Density 10 Armor Coverage 150 Evasion (%) 40 Recoil Reduction 2 Item Schematics ----------------- None Robot Schematics ------------------ None Fabricated ------------ Nothing Repaired ---------- Nothing Alien Tech Used ----------------- None Achievements -------------- None Challenges ------------ None Game ------ Seed StorageMultitargetingWand Manual? 0 Play Time 00:16:22 Cumulative 240.5 hours Start 2025.05.22 @ 22:28:25 End 2025.05.22 @ 22:40:07 Sessions 1 Manual Loads 0 Difficulty Rogue Special Mode None Game No. 130 Rogue 122 Adventurer 8 Explorer 0 Win Type - Total 8 Types 4/0/2/1/0/0/0/0/0/1 Lore% 84 Gallery% 79 Achievement% 66 Wizard Run 0 Options --------- Layout 2 ASCII 0 Keyboard 1 Movement Numpad Keybinds 1 Fullscreen 1 Font 48/Smallcaps Map View 50x44 Zoom Use 0% Tactical HUD 1 Map Filters NONE Filters NONE Steam 1 RUN: b78462e8-8ce4-47bf-ad0e-32ef84022ba0